bitfinex/quotes_ETHUSD_20241116
["timestamp","ask_amount","ask_price","bid_price","bid_amount"]
[1731731308157,0.8216,3141.3,3141.2,0.13]
[1731731308361,0.8216,3141.3,3141.1,0.33217906]
[1731731308837,3.18349,3141.2,3141.1,0.33217906]
[1731731309036,3.18349,3141.2,3139.9,0.06367925]
[1731731309290,3.18424,3140.5,3139.8,0.56191137]
[1731731309443,3.18424,3140.5,3140.1,0.33223957]
[1731731311413,3.18424,3140.5,3140.2,0.13]
[1731731311754,0.8216,3140.6,3140.2,0.13]
[1731731312161,4.00571,3140.6,3140.2,0.13]
[1731731312357,0.8216,3140.6,3140.2,0.13]
[1731731312590,3.18428,3140.5,3140.2,0.13]
[1731731313159,4.0057,3140.6,3140.2,0.13]
[1731731313673,4.0057,3140.6,3140.1,0.33223957]
[1731731314067,3.1842,3140.5,3140.1,0.33223957]
[1731731314257,3.18431,3140.4,3140.1,0.33223957]
[1731731314707,0.03252265,3140.3,3140.1,0.33223957]
[1731731315258,3.18451,3140.2,3140.1,0.33223957]
[1731731315503,3.21699331,3140.2,3140.1,0.33223957]
[1731731315682,0.03248331,3140.2,3140.1,0.33223957]
[1731731316059,3.18443,3140.3,3140.1,0.33223957]
[1731731316258,0.03248331,3140.2,3140.1,0.33223957]
[1731731316455,3.18443,3140.3,3140.1,0.33223957]
[1731731316693,0.03248331,3140.2,3140.1,0.33223957]
[1731731317002,3.18443,3140.3,3140.1,0.33223957]
[1731731317206,0.03248331,3140.2,3140.1,0.33223957]
[1731731317364,3.18443,3140.3,3140.1,0.33223957]
[1731731317565,0.03187664,3140.2,3140.1,0.33223957]
[1731731317765,3.18443,3140.3,3140.1,0.33223957]
[1731731318109,0.03187664,3140.2,3140.1,0.33223957]
[1731731318403,3.18443,3140.3,3140.1,0.33223957]
[1731731318617,0.03187664,3140.2,3140.1,0.33223957]
[1731731318796,3.18443,3140.3,3140.1,0.33223957]
[1731731318966,0.03187664,3140.2,3140.1,0.33223957]
[1731731319164,3.18443,3140.3,3140.1,0.33223957]
[1731731319366,0.03187664,3140.2,3140.1,0.33223957]
[1731731319592,3.18431,3140.4,3140.1,0.33223957]
[1731731319911,0.03179102,3140.3,3140.1,0.33223957]
[1731731320664,3.18398,3140.8,3140.1,4.30887957]
[1731731320906,0.03194688,3140.7,3140.1,4.30887957]
[1731731321282,3.18398,3140.8,3140.1,4.30887957]
[1731731321695,0.03194688,3140.7,3140.1,4.30887957]
[1731731322021,3.18398,3140.8,3140.1,4.30887957]
[1731731322229,3.18408,3140.7,3140.1,1.12433957]
[1731731322368,3.18412,3140.6,3140.1,1.12433957]
[1731731322569,0.03186822,3140.5,3140.1,1.12433957]
[1731731324593,3.1843,3140.4,3140.1,1.12433957]
[1731731324812,0.03180362,3140.3,3140.1,1.12433957]
[1731731325115,3.21629362,3140.3,3140.1,0.33223957]
[1731731325612,3.18451,3140.2,3140.1,0.33223957]
[1731731325819,3.21616039,3140.2,3140.1,0.33223957]
[1731731326381,3.93480543,3140.2,3140.1,0.33223957]
[1731731326709,4.72060543,3140.2,3140.1,0.33223957]
[1731731340553,0.03165039,3140.2,3140.1,0.33223957]
[1731731340756,0.03165039,3140.2,3140.1,1.15083957]
[1731731340961,3.18411,3140.6,3140.1,1.15083957]
[1731731341125,0.03003138,3140.2,3140.1,1.15083957]
[1731731341325,3.18424,3140.5,3140.1,1.15083957]
[1731731341525,0.03003212,3140.2,3140.1,1.15083957]
[1731731341763,3.18431,3140.4,3140.1,1.15083957]
[1731731342224,0.03007146,3140.3,3140.1,1.15083957]
[1731731342425,3.18416,3140.6,3140.1,1.15083957]
[1731731342759,3.18431,3140.4,3140.1,1.15083957]
[1731731342941,3.18441,3140.3,3140.1,1.15083957]
[1731731343160,0.03007146,3140.3,3140.1,0.33223957]
[1731731345059,3.98388146,3140.3,3140.1,0.33223957]
[1731731346162,0.03007146,3140.3,3140.1,0.33223957]
[1731731346464,3.18421,3140.5,3140.1,0.33223957]
[1731731346760,3.21442079,3140.4,3140.1,0.33223957]
[1731731347122,0.03011079,3140.4,3140.1,0.33223957]
[1731731347435,3.18411,3140.6,3140.2,0.8186]
[1731731347747,0.03123956,3140.5,3140.2,0.8186]
[1731731350139,0.03123956,3140.5,3140.2,4.00304]
[1731731350458,3.18373,3141.0,3140.3,3.18436]
[1731731350768,3.18373,3141.0,3140.4,3.18424]
[1731731350952,0.02932386,3140.9,3140.4,3.18424]
[1731731351671,0.02932386,3140.9,3140.4,3.30424]
[1731731352968,3.21313386,3140.9,3140.4,0.12]
[1731731353136,0.02932386,3140.9,3140.4,0.12]
[1731731355538,3.18397,3140.8,3140.4,0.12]
[1731731355757,3.18412,3140.6,3140.4,0.12]
[1731731356171,0.03132357,3140.5,3140.4,0.12]
[1731731356685,3.18397,3140.8,3140.4,0.12]
[1731731356846,0.03140785,3140.7,3140.4,0.12]
[1731731357047,3.18397,3140.8,3140.4,0.12]
[1731731357247,0.03140785,3140.7,3140.4,0.12]
[1731731357484,3.18397,3140.8,3140.4,0.12]
[1731731357685,0.02931399,3140.7,3140.4,0.12]
[1731731357845,3.18397,3140.8,3140.4,0.12]
[1731731358249,0.02931399,3140.7,3140.4,0.12]
[1731731358574,3.18397,3140.8,3140.4,0.12]
[1731731358758,0.02927097,3140.6,3140.4,0.12]
[1731731358969,3.18397,3140.8,3140.4,0.12]
[1731731359165,0.03131961,3140.5,3140.4,0.12]
[1731731359361,3.18397,3140.8,3140.4,0.12]
[1731731359561,0.0313204,3140.5,3140.4,0.12]
[1731731359773,3.18397,3140.8,3140.4,0.12]
[1731731359973,0.02923237,3140.5,3140.4,0.12]
[1731731360181,3.18397,3140.8,3140.4,0.12]
[1731731360375,0.02923237,3140.5,3140.4,0.12]
[1731731360576,3.18397,3140.8,3140.4,0.12]
[1731731360752,0.02923237,3140.5,3140.4,0.12]
[1731731361251,3.18397,3140.8,3140.4,0.12]
[1731731361453,0.02931104,3140.7,3140.4,0.12]
[1731731361692,3.18397,3140.8,3140.4,0.12]
[1731731361987,0.02931104,3140.7,3140.4,0.12]
[1731731362286,0.02931104,3140.7,3140.5,0.7797]
[1731731362493,0.02926653,3140.6,3140.5,3.9639]
[1731731362791,3.18363,3141.1,3140.5,3.96388]
[1731731362993,0.02928576,3140.6,3140.5,3.96388]
[1731731363174,3.18363,3141.1,3140.5,6.96388]
[1731731363397,3.18371,3141.0,3140.5,0.7797]
[1731731363599,3.21315307,3141.0,3140.5,0.7797]
[1731731363807,0.02944307,3141.0,3140.5,0.7797]
[1731731364121,3.1836,3141.1,3140.5,0.7797]
[1731731364321,0.02944307,3141.0,3140.5,3.9639]
[1731731364474,0.02944307,3141.0,3140.5,0.7797]
[1731731365292,0.02944307,3141.0,3140.6,3.0]
[1731731366310,0.02944307,3141.0,3140.5,3.7797]
[1731731366518,0.02944307,3141.0,3140.5,0.7797]
[1731731367171,0.02944307,3141.0,3140.6,3.0]
[1731731368601,0.02944307,3141.0,3140.6,3.1841]
[1731731369121,0.02944307,3141.0,3140.5,0.7797]
[1731731369317,0.02944307,3141.0,3140.6,3.18402]
[1731731369549,3.1834,3141.3,3140.6,3.18402]
[1731731369728,0.03280179,3140.9,3140.6,3.18402]
[1731731370025,3.1834,3141.3,3140.6,3.18402]
[1731731370175,0.03275641,3140.8,3140.7,3.8152]
[1731731370376,0.7606,3141.7,3140.7,3.8152]
[1731731370377,3.18311,3141.6,3140.9,3.1837]
[1731731370830,0.03071155,3141.5,3140.9,3.1837]
[1731731371442,0.03071155,3141.5,3140.9,3.2473683]
[1731731371808,3.18311,3141.6,3140.9,3.2473683]
[1731731373733,3.18311,3141.6,3141.0,3.0]
[1731731373937,3.18311,3141.6,3141.0,6.18367]
[1731731374307,0.7606,3141.7,3141.0,6.18367]
[1731731374633,0.7606,3141.7,3141.1,3.99872]
[1731731374999,0.03079013,3141.6,3141.1,3.99872]
[1731731375197,0.03079013,3141.6,3141.2,3.18342]
[1731731375436,0.03079013,3141.6,3141.3,3.18337]
[1731731375637,3.94339,3141.9,3141.3,3.18337]
[1731731376303,0.03087435,3141.8,3141.3,3.18337]
[1731731377467,0.03087435,3141.8,3141.7,3.99819]
[1731731377601,0.7606,3142.3,3141.7,3.99819]
[1731731378030,0.02908562,3142.2,3141.7,3.99819]
[1731731378414,0.02908562,3142.2,3141.7,4.12819]
[1731731378751,3.21157562,3142.2,3141.7,0.9452]
[1731731378954,3.18269,3142.0,3141.7,0.13]
[1731731379457,0.02897808,3141.9,3141.7,0.13]
[1731731380557,0.02897808,3141.9,3141.5,2.14]
[1731731381236,0.02897808,3141.9,3141.6,0.13]
[1731731381440,3.94357,3141.8,3141.6,0.13]
[1731731381758,3.18299,3141.7,3141.6,0.13]
[1731731381946,3.21395373,3141.7,3141.6,0.13]
[1731731384051,3.21395373,3141.7,3141.0,5.31120044]
[1731731384052,0.03096373,3141.7,3141.1,3.0]
[1731731384254,3.18313,3141.6,3141.2,1.31231044]
[1731731384453,0.7606,3141.8,3141.0,0.8152]
[1731731384754,3.1831,3141.6,3141.0,2.12751044]
[1731731385061,3.21406208,3141.5,3141.0,0.8152]
[1731731386020,3.1833,3141.4,3141.0,0.8152]
[1731731386458,0.03077784,3141.3,3141.0,0.8152]
[1731731387156,0.03077784,3141.3,3140.8,3.0]
[1731731387157,3.1835,3141.2,3140.7,0.8152]
[1731731387342,0.03069359,3141.1,3140.7,0.8152]
[1731731387735,0.03069359,3141.1,3140.6,0.33217648]
[1731731387915,3.18386,3140.9,3140.6,0.33217648]
[1731731388117,0.80937591,3140.8,3140.6,0.33217648]
[1731731388558,3.184,3140.7,3140.6,0.33217648]
[1731731389060,0.0328305,3140.7,3140.6,0.33217648]
[1731731389422,3.96273,3140.8,3140.6,0.33217648]
[1731731389621,0.03048546,3140.7,3140.3,3.0]
[1731731389825,3.1842,3140.5,3140.1,0.33231238]
[1731731390153,0.03269435,3140.4,3140.1,3.51690238]
[1731731390366,3.18402,3140.7,3140.1,0.33231238]
[1731731390536,3.18412,3140.6,3140.1,0.33231238]
[1731731390741,3.21690512,3140.6,3140.1,0.33231238]
[1731731390948,3.18427,3140.5,3140.1,0.33231238]
[1731731391148,3.21703435,3140.4,3140.1,0.33231238]
[1731731391450,0.7788,3140.3,3139.8,3.08024446]
[1731731391646,3.21703435,3140.4,3139.8,6.26514446]
[1731731391822,0.03260356,3140.2,3139.8,6.26514446]
[1731731392022,0.03264896,3140.3,3139.8,6.26514446]
[1731731392257,0.03255817,3140.1,3139.9,3.0]
[1731731392469,0.03260356,3140.2,3139.9,3.0]
[1731731392758,3.96303,3140.5,3139.9,3.0]
[1731731392930,3.96303,3140.5,3139.9,6.18474]
[1731731393267,0.03035903,3140.4,3140.0,3.1847]
[1731731394069,0.03035903,3140.4,3139.9,3.0]
[1731731396077,0.03035903,3140.4,3139.9,6.1848]
[1731731397034,0.03035903,3140.4,3140.1,3.08024446]
[1731731397240,0.03035903,3140.4,3140.3,6.1844]
[1731731397461,0.7788,3141.1,3140.3,6.1844]
[1731731397735,3.1838,3140.9,3140.3,6.1844]
[1731731397939,0.03278032,3140.8,3140.3,6.1844]
[1731731398774,3.21671032,3140.8,3140.3,3.0]
[1731731402746,3.96298,3140.6,3139.9,7.07204446]
[1731731402947,0.7788,3140.6,3140.0,3.0]
[1731731403152,3.96293,3140.6,3140.0,6.1847]
[1731731403641,3.18408,3140.7,3140.0,6.1847]
[1731731404077,3.18408,3140.7,3140.0,3.0]
[1731731404250,0.81158032,3140.8,3140.0,3.0]
[1731731404878,0.81158032,3140.8,3140.1,3.18461]
[1731731404879,3.18407,3140.7,3140.1,3.18461]
[1731731405195,3.18407,3140.7,3140.0,6.18464]
[1731731405710,0.81158032,3140.8,3140.0,6.18464]
[1731731405872,3.18401,3140.7,3140.0,6.18464]
[1731731406071,3.18401,3140.7,3140.1,3.1846]
[1731731406306,0.81158032,3140.8,3140.0,3.0]
[1731731406615,3.184,3140.7,3140.1,3.18452]
[1731731406813,3.184,3140.7,3140.3,1.31286343]
[1731731407115,0.03278032,3140.8,3140.6,1.31286343]
[1731731407620,0.03278032,3140.8,3140.4,0.807]
[1731731407768,0.03278032,3140.8,3140.3,1.31286343]
[1731731407769,3.18401,3140.7,3140.3,1.31286343]
[1731731407983,3.95201,3140.7,3140.3,1.31286343]
[1731731408722,1.48485903,3140.7,3140.3,1.31286343]
[1731731408875,3.18428,3140.5,3140.0,2.07826343]
[1731731410218,3.18428,3140.5,3140.0,1.31286343]
[1731731412119,3.18428,3140.5,3140.0,4.31286343]
[1731731412719,3.18431,3140.4,3140.0,1.31286343]
[1731731413101,3.18428,3140.5,3140.0,1.31286343]
[1731731413432,3.18428,3140.5,3140.0,4.31286343]
[1731731414601,3.18428,3140.5,3140.0,1.31286343]
[1731731414811,3.18443,3140.3,3140.0,1.31286343]
[1731731415012,3.18428,3140.5,3140.0,1.31286343]
[1731731417503,0.03533197,3140.4,3140.0,1.31286343]
[1731731417703,3.21964197,3140.4,3140.0,1.31286343]
[1731731418024,0.03533197,3140.4,3140.0,1.31286343]
[1731731419323,3.21972197,3140.4,3140.0,1.31286343]
[1731731419623,0.03533197,3140.4,3140.3,1.31286343]
[1731731419868,3.18411,3140.6,3140.3,1.31286343]
[1731731420167,0.03853005,3140.5,3140.3,1.31286343]
[1731731420741,3.95207,3140.7,3140.3,1.31286343]
[1731731421075,3.21677858,3140.6,3140.3,1.31286343]
[1731731421975,3.18423,3140.5,3140.3,1.31286343]
[1731731422335,0.03256122,3140.4,3140.3,1.31286343]
[1731731423034,0.35424034,3140.4,3139.8,0.33234823]
[1731731423250,3.18471,3140.0,3139.8,0.33234823]
[1731731423469,0.03503154,3139.9,3139.8,0.33234823]
[1731731423672,4.00497,3140.2,3139.8,0.33234823]
[1731731423879,0.03510864,3140.1,3139.8,0.33234823]
[1731731424398,3.18478,3140.0,3139.8,0.33234823]
[1731731424541,0.03510864,3140.1,3139.9,1.31286343]
[1731731424748,3.18431,3140.4,3139.9,1.31286343]
[1731731424971,3.18405,3140.7,3140.3,1.31286343]
[1731731425155,0.718837,3140.6,3140.3,1.31286343]
[1731731425365,0.718837,3140.6,3140.1,1.31286343]
[1731731425564,3.18411,3140.6,3140.1,1.31286343]
[1731731426054,3.184,3140.7,3140.1,4.49746343]
[1731731426859,3.184,3140.7,3140.1,1.31286343]
[1731731427285,3.18412,3140.6,3140.1,1.31286343]
[1731731427486,3.18432,3140.4,3140.0,0.8211]
[1731731428086,3.184,3140.7,3140.0,0.8211]
[1731731428291,3.18417,3140.6,3140.0,0.8211]
[1731731428494,3.18427,3140.5,3140.0,0.8211]
[1731731428692,4.0038,3140.3,3139.7,5.06456343]
[1731731428885,0.8193,3140.3,3139.5,0.49816297]
[1731731429190,0.8193,3139.8,3139.3,2.39692709]
[1731731429355,3.18471,3140.0,3139.7,1.31286343]
[1731731429556,3.903562,3140.0,3139.7,1.31286343]
[1731731430168,3.18482,3139.9,3139.5,1.31286343]
[1731731430893,3.18482,3139.9,3139.3,4.26947366]
[1731731432498,3.18508,3139.7,3139.3,0.33236366]
[1731731432799,4.00429,3139.8,3139.3,0.33236366]
[1731731433267,3.18503,3139.7,3139.3,0.33236366]
[1731731434883,0.8193,3139.8,3139.3,0.33236366]
[1731731435084,3.18512,3139.6,3139.3,0.33236366]
[1731731436711,3.18512,3139.6,3139.4,0.23636634]
[1731731436866,3.18512,3139.6,3139.5,0.23636634]
[1731731437386,3.21990871,3139.6,3139.5,0.23636634]
[1731731440421,0.03478871,3139.6,3139.5,0.23636634]
[1731731440713,3.185,3139.8,3139.5,0.23636634]
[1731731441000,0.03477407,3139.7,3139.6,0.23636634]
[1731731441371,3.185,3139.8,3139.6,0.23636634]
[1731731441572,0.0347787,3139.7,3139.4,0.7801]
[1731731441775,0.0347787,3139.7,3139.5,0.23613942]
[1731731441974,0.0347787,3139.7,3139.4,0.7801]
[1731731441975,3.185,3139.8,3139.6,0.23613942]
[1731731442173,0.0347787,3139.7,3139.4,0.7801]
[1731731442480,3.185,3139.8,3139.5,0.23611937]
[1731731442694,0.0347787,3139.7,3139.6,0.23611937]
[1731731442888,3.18475,3140.0,3139.5,0.23611937]
[1731731443114,0.03804772,3139.9,3139.6,0.23611937]
[1731731443292,0.03804772,3139.9,3139.7,0.23611937]
[1731731443471,0.03804772,3139.9,3139.4,3.96541]
[1731731443801,0.03804772,3139.9,3139.5,0.23615767]
[1731731443977,0.03804772,3139.9,3139.4,3.96541]
[1731731443978,0.03804772,3139.9,3139.6,0.23615767]
[1731731444180,0.03804772,3139.9,3139.7,0.23615767]
[1731731444389,0.03804772,3139.9,3139.8,0.23615767]
[1731731444693,0.03804772,3139.9,3139.5,0.06370255]
[1731731444877,3.18453,3140.2,3139.6,3.1851]
[1731731445082,3.22280503,3140.1,3139.6,0.23621605]
[1731731445481,0.03815503,3140.1,3139.6,0.23621605]
[1731731445688,0.03815503,3140.1,3139.5,3.18521]
[1731731446906,3.22277503,3140.1,3139.5,3.18521]
[1731731447775,0.03815503,3140.1,3139.7,0.7914]
[1731731447974,0.03815503,3140.1,3139.7,3.9764]
[1731731448278,0.03810138,3140.0,3139.7,3.9764]
[1731731448476,3.18442,3140.3,3139.7,3.9764]
[1731731448713,0.03820868,3140.2,3139.7,3.9764]
[1731731449612,3.93923,3140.5,3139.8,3.24859448]
[1731731449773,0.03815503,3140.1,3139.8,3.24859448]
[1731731449974,3.93923,3140.5,3139.9,3.18473]
[1731731450170,0.03810138,3140.0,3139.9,3.97613]
[1731731450373,3.18423,3140.5,3139.9,3.97613]
[1731731450607,0.03814981,3140.0,3139.9,3.97613]
[1731731450813,3.18423,3140.5,3139.9,3.97613]
[1731731451009,0.03814981,3140.0,3139.9,3.97613]
[1731731451310,0.03502895,3140.0,3139.9,3.97613]
[1731731451622,3.18423,3140.5,3139.9,3.97613]
[1731731451771,0.03502895,3140.0,3139.9,3.97613]
[1731731452112,3.18386,3140.9,3140.3,0.7914]
[1731731452304,0.03543989,3140.8,3140.3,4.03941174]
[1731731452504,3.18386,3140.9,3140.3,4.03941174]
[1731731452877,3.18386,3140.9,3140.3,5.35227132]
[1731731454016,3.18386,3140.9,3140.3,5.28858958]
[1731731454700,3.18391,3140.8,3140.3,2.10425958]
[1731731455022,0.03268544,3140.7,3140.3,2.10425958]
[1731731455385,3.18391,3140.8,3140.3,0.7914]
[1731731455580,3.18422,3140.5,3140.1,0.7914]
[1731731455895,0.03254928,3140.4,3140.1,0.7914]
[1731731456415,3.18446,3140.3,3139.7,2.10425958]
[1731731456715,0.03516153,3140.2,3139.7,5.28923958]
[1731731456883,0.03516153,3140.2,3139.7,3.97638]
[1731731457922,6.36849,3140.5,3139.8,3.18491]
[1731731458096,0.03525988,3140.4,3139.8,3.18491]
[1731731458498,0.03525988,3140.4,3139.8,3.24860008]
[1731731458787,0.03525988,3140.4,3139.9,3.1848]
[1731731459128,0.03525988,3140.4,3139.8,3.24860008]
[1731731460921,0.755,3140.6,3140.0,3.1847]
[1731731461226,0.03256565,3140.5,3140.1,0.7914]
[1731731461522,3.18403,3140.7,3140.1,3.97598]
[1731731461716,0.03028802,3140.6,3140.1,0.7914]
[1731731462282,0.03028802,3140.6,3140.1,3.97599]
[1731731462717,0.03028802,3140.6,3139.8,3.0826147]
[1731731462718,3.18422,3140.5,3139.9,3.7914]
[1731731463019,0.03020373,3140.4,3139.9,6.97621]
[1731731463320,0.03020373,3140.4,3139.6,0.7914]
[1731731463479,0.755,3140.5,3139.7,3.55]
[1731731463480,3.18448,3140.3,3139.7,3.55]
[1731731463685,3.21464212,3140.2,3139.7,3.55]
[1731731464385,3.18464,3140.1,3139.7,0.55]
[1731731464576,0.755,3140.1,3139.7,0.55]
[1731731464781,0.03234638,3140.0,3139.7,0.55]
[1731731465322,0.03234638,3140.0,3139.5,0.33232307]
[1731731465516,3.21706638,3140.0,3139.5,0.33232307]
[1731731465924,3.22670017,3140.0,3139.5,3.33232307]
[1731731466083,3.22670017,3140.0,3139.5,0.33232307]
[1731731466608,3.18482,3139.9,3139.5,0.33232307]
[1731731466809,3.18501,3139.7,3139.5,0.33232307]
[1731731466988,0.755,3139.6,3139.5,0.33232307]
[1731731467184,0.79680309,3139.6,3139.5,0.33232307]
[1731731467807,3.98191309,3139.6,3139.5,0.33232307]
[1731731467996,4.3801044,3139.6,3139.5,0.33232307]
[1731731469460,3.98191309,3139.6,3139.5,0.33232307]
[1731731474550,0.04180309,3139.6,3139.5,0.33232307]
[1731731474751,0.04180309,3139.6,3139.5,6.60015777]
[1731731474934,3.96907,3140.4,3139.7,3.18498]
[1731731475451,3.18441,3140.3,3139.7,3.18498]
[1731731475808,3.18441,3140.3,3139.5,9.60015777]
[1731731475809,3.18441,3140.3,3139.6,3.0]
[1731731476220,3.18441,3140.3,3139.7,3.185]
[1731731477449,3.18452,3140.2,3139.6,3.0]
[1731731477737,3.18491,3139.8,3139.5,0.33232307]
[1731731479054,3.18511,3139.6,3139.5,0.33232307]
[1731731480217,6.3699,3139.8,3139.5,0.33232307]
[1731731480422,3.18491,3139.8,3139.5,0.33232307]
[1731731480765,3.18501,3139.7,3139.5,0.33232307]
[1731731481536,3.18488,3139.9,3139.5,0.33232307]
[1731731481737,3.18493,3139.8,3139.5,0.33232307]
[1731731482137,3.18502,3139.7,3139.5,0.33232307]
[1731731482534,3.18493,3139.8,3139.5,0.33232307]
[1731731483126,0.7847,3140.0,3139.5,1.14812307]
[1731731483671,3.96924,3140.2,3139.5,4.33324307]
[1731731484039,3.18462,3140.1,3139.5,4.33324307]
[1731731487271,3.18432,3140.4,3139.7,3.18493]
[1731731487576,3.18402,3140.7,3140.1,0.8158]
[1731731487875,0.7847,3140.8,3140.1,0.8158]
[1731731488088,3.18401,3140.7,3140.1,0.8158]
[1731731488388,3.18401,3140.7,3140.1,4.00039]
[1731731488779,3.18401,3140.7,3140.1,0.8158]
[1731731491589,3.18401,3140.7,3140.1,4.0004]
[1731731493083,0.7847,3140.8,3140.2,3.18443]
[1731731493251,3.96861,3140.8,3140.2,3.18443]
[1731731494091,3.18369,3141.0,3140.2,3.18443]
[1731731494260,3.18369,3141.0,3140.4,3.99926]
[1731731494673,3.1836,3141.1,3140.4,3.99926]
[1731731495058,3.18352,3141.2,3140.6,3.18409]
[1731731495890,3.9798,3141.4,3140.8,3.18389]
[1731731496089,3.1833,3141.4,3140.8,3.18389]
[1731731497659,3.18341,3141.3,3140.7,0.8786737]
[1731731498294,3.18341,3141.3,3140.7,4.0626737]
[1731731500003,3.18341,3141.3,3140.7,3.999]
[1731731503280,1.433161,3141.3,3140.4,0.815]
[1731731503479,3.18407,3140.7,3140.1,3.99953]
[1731731503881,0.7965,3140.8,3140.2,3.1845]
[1731731504577,3.9804,3140.8,3140.2,3.1845]
[1731731504883,3.9804,3140.8,3140.3,1.31288925]
[1731731505371,3.9804,3140.8,3140.4,0.23560879]
[1731731505568,3.9804,3140.8,3140.1,2.12788925]
[1731731505772,3.9804,3140.8,3140.2,0.23560989]
[1731731506009,3.9804,3140.8,3140.3,0.23560989]
[1731731506209,3.9804,3140.8,3140.4,0.23560989]
[1731731506397,3.9804,3140.8,3140.1,2.12788925]
[1731731506605,3.9804,3140.8,3140.2,0.23559089]
[1731731506795,3.9804,3140.8,3140.3,0.23559089]
[1731731507107,3.9804,3140.8,3140.1,0.815]
[1731731507320,3.9804,3140.8,3140.2,3.18449]
[1731731507816,3.18411,3140.6,3140.2,0.23562704]
[1731731508573,3.18411,3140.6,3140.3,0.23562704]
[1731731508778,3.18411,3140.6,3140.1,0.815]
[1731731509014,3.18411,3140.6,3140.2,0.23563594]
[1731731509314,3.18422,3140.5,3140.3,0.23563594]
[1731731509481,3.18422,3140.5,3140.2,0.23563594]
[1731731509681,3.18422,3140.5,3140.1,0.815]
[1731731510090,0.7972,3140.3,3139.9,0.33232966]
[1731731510291,3.19333,3141.4,3139.9,0.33232966]
[1731731510292,3.18471,3140.0,3139.9,0.33232966]
[1731731510493,4.300381,3140.0,3139.9,0.33232966]
[1731731510693,4.300381,3140.0,3139.1,3.9363]
[1731731510694,4.300411,3140.0,3139.1,3.9363]
[1731731510878,3.18502,3139.7,3139.3,0.33241217]
[1731731511315,3.18487,3139.9,3139.3,0.33241217]
[1731731511627,3.18496,3139.8,3139.3,0.33241217]
[1731731511982,3.18496,3139.8,3139.3,3.33241217]
[1731731512184,3.18532,3139.4,3139.3,0.33241217]
[1731731517703,0.7972,3139.5,3139.3,0.33241217]
[1731731517905,3.98243,3139.5,3139.3,0.33241217]
[1731731518142,0.7972,3139.5,3139.3,0.33241217]
[1731731518334,3.18512,3139.6,3139.3,0.33241217]
[1731731518838,0.7972,3139.7,3139.3,0.33241217]
[1731731519001,3.98194,3140.0,3139.4,0.7507]
[1731731519206,3.18468,3140.1,3139.4,0.7507]
[1731731519448,3.18452,3140.2,3139.4,0.7507]
[1731731519449,0.7972,3140.3,3139.5,3.18521]
[1731731519622,3.18473,3140.0,3139.4,0.7507]
[1731731519816,3.18451,3140.2,3139.4,0.7507]
[1731731520018,3.18451,3140.2,3139.5,3.18514]
[1731731520250,3.18466,3140.1,3139.5,3.18514]
[1731731520436,3.18475,3140.0,3139.4,0.7507]
[1731731520636,3.18482,3139.9,3139.4,0.7507]
[1731731522329,3.18467,3140.1,3139.4,3.936]
[1731731522953,3.18472,3140.0,3139.4,0.7507]
[1731731524519,3.18472,3140.0,3139.4,3.93602]
[1731731525634,3.18482,3139.9,3139.4,0.7507]
[1731731527973,1.394054,3139.9,3139.3,0.33241217]
[1731731528277,3.18519,3139.6,3139.3,0.33241217]
[1731731529175,3.18493,3139.8,3139.3,0.33241217]
[1731731529673,3.18512,3139.6,3139.3,0.33241217]
[1731731533021,3.99723,3140.2,3139.5,1.31391689]
[1731731533310,3.99703,3140.4,3139.8,1.31391689]
[1731731533474,3.18433,3140.4,3139.8,5.26961689]
[1731731533678,1.57436275,3140.9,3139.8,5.26961689]
[1731731533679,3.18392,3140.8,3140.2,1.31391689]
[1731731533873,3.184,3140.7,3140.2,1.31391689]
[1731731534614,3.184,3140.7,3140.1,3.1846]
[1731731535132,3.18411,3140.6,3139.9,3.1848]
[1731731535517,3.18422,3140.5,3139.9,3.1848]
[1731731536989,0.8127,3140.9,3139.8,3.7708]
[1731731537228,3.9972,3140.3,3139.8,0.7708]
[1731731537383,3.18459,3140.2,3139.8,0.7708]
[1731731537586,3.18461,3140.1,3139.4,0.7708]
[1731731537829,3.18482,3139.9,3139.4,0.7708]
[1731731538140,3.18482,3139.9,3139.3,6.59994464]
[1731731538141,3.99802,3139.4,3139.3,0.33241217]
[1731731538296,3.18631,3138.5,3138.1,0.7708]
[1731731538499,3.18657,3138.2,3137.7,0.7708]
[1731731539796,3.18675,3138.0,3137.7,0.7708]
[1731731540713,3.18656,3138.2,3137.7,0.7708]
[1731731540919,3.18636,3138.4,3137.7,3.95782]
[1731731541118,3.18644,3138.3,3137.7,0.7708]
[1731731541361,3.1863,3138.5,3137.7,3.95784]
[1731731541657,3.18637,3138.4,3137.7,3.95784]
[1731731541957,3.18616,3138.6,3137.8,3.25067172]
[1731731542253,3.18624,3138.5,3137.8,3.25067172]
[1731731542464,3.18624,3138.5,3137.8,3.18694]
[1731731542617,3.18634,3138.4,3137.7,0.7708]
[1731731542823,3.18634,3138.4,3137.7,3.95779]
[1731731543847,0.637247,3138.4,3137.6,0.1448862]
[1731731544060,3.18655,3138.2,3137.6,0.1448862]
[1731731545198,3.18682,3138.0,3137.6,0.1448862]
[1731731545948,3.18655,3138.2,3137.6,0.1448862]
[1731731547166,3.18664,3138.1,3137.6,0.1448862]
[1731731547872,3.18645,3138.3,3137.6,0.1448862]
[1731731548238,3.18635,3138.4,3137.6,0.1448862]
[1731731548239,3.18658,3138.2,3137.6,0.1448862]
[1731731548871,3.18635,3138.4,3137.6,0.1448862]
[1731731549035,0.318635,3138.4,3137.6,0.1448862]
[1731731549240,3.18678,3138.0,3137.6,0.1448862]
[1731731549440,3.18669,3138.1,3137.6,0.1448862]
[1731731549941,0.8127,3138.7,3137.7,0.06373685]
[1731731550147,3.18634,3138.4,3137.8,0.7835]
[1731731553431,3.18613,3138.6,3137.8,0.7835]
[1731731553666,0.94354517,3139.0,3138.2,3.7687]
[1731731553872,3.18621,3138.6,3138.2,3.7687]
[1731731554057,3.18633,3138.5,3137.9,3.7687]
[1731731555074,3.18633,3138.5,3137.9,6.95553]
[1731731558861,3.18606,3138.7,3138.0,3.18672]
[1731731559080,3.18606,3138.7,3138.1,3.0]